fUSD/lending_fUSD_20260627
["ID","MTS","AMOUNT","RATE_DAILY","PERIOD"]
[426516967,1782514232000,-268.64,0.00031654,2]
[426516968,1782514232000,-518.78,0.00031668,30]
[426516972,1782514232000,-695.74,0.00031906,7]
[426516982,1782514232000,-151.0,0.0003316,14]
[426516973,1782514232000,-5000.0,0.00031915,2]
[426516975,1782514232000,-455.85,0.00032232,7]
[426516985,1782514232000,-1500.0,0.0003353,10]
[426516974,1782514232000,-151.0,0.000322,5]
[426516976,1782514232000,-166.65,0.0003227,2]
[426516990,1782514232000,-4920.71847164,0.00034002,2]
[426516992,1782514232000,-298.0,0.00034197,14]
[426516983,1782514232000,-180.0,0.00033265,120]
[426516991,1782514232000,-163.08,0.00034051,2]
[426516979,1782514232000,-1224.7355066,0.00032523,2]
[426516981,1782514232000,-12492.03925934,0.00033,7]
[426516978,1782514232000,-686.0,0.00032485,5]
[426516977,1782514232000,-162.49,0.00032451,2]
[426516980,1782514232000,-1698.0,0.00032898,20]
[426517090,1782514233000,-174.54,0.00035795,2]
[426517087,1782514233000,-367.16,0.00035794,2]
[426517089,1782514233000,-163.56,0.00035795,2]
[426517091,1782514233000,-376.0,0.000358,5]
[426517088,1782514233000,-354.94,0.00035794,2]
[426517092,1782514233000,-14271.7467672,0.000358,2]
[426517094,1782514233000,-158.29,0.00035884,7]
[426517095,1782514233000,-159.94,0.00035884,7]
[426517098,1782514233000,-12633.07705389,0.00035899,90]
[426517096,1782514233000,-174.11021238,0.00035889,9]
[426517097,1782514233000,-228.24,0.00035898,7]
[426517099,1782514233000,-20605.55212155,0.00035899,90]
[426517100,1782514233000,-12963.04341734,0.00035899,90]
[426517093,1782514233000,-1928.77003221,0.000358,2]
[426517103,1782514237000,-150.86,0.00026457,7]
[426517102,1782514237000,-150.86,0.00024658,2]
[426517105,1782514237000,-150.86,0.00030057,2]
[426517104,1782514237000,-150.86,0.00028257,30]
[426517106,1782514237000,-54.43343808,0.00031658,10]
[426517108,1782514237000,-3787.75062424,0.00031658,10]
[426517109,1782514237000,-1877.55697086,0.00035359,2]
[426517107,1782514237000,-1680.26593768,0.00031658,10]
[426517110,1782514238000,-858.17773391,0.00035359,2]
[426517119,1782514239000,-2200.24674159,0.00035359,2]
[426517117,1782514239000,-993.29572744,0.00035359,2]
[426517118,1782514239000,-899.90726853,0.00035359,2]
[426517120,1782514240000,-259.44,0.00035359,2]
[426517121,1782514240000,-308.56697572,0.00035359,2]
[426517143,1782514243000,-164.94,0.000359,98]
[426517149,1782514243000,-450.75844731,0.0003599,2]
[426517150,1782514243000,-979.39,0.00035997,30]
[426517151,1782514243000,-10000.0,0.00036,120]
[426517156,1782514243000,-354.94,0.00036003,30]
[426517166,1782514243000,-286.9586955,0.00036138,2]
[426517167,1782514243000,-159.94,0.00036138,2]
[426517159,1782514243000,-440.52,0.00036003,30]
[426517157,1782514243000,-367.16,0.00036003,30]
[426517162,1782514243000,-1698.0,0.00036047,20]
[426517164,1782514243000,-167.92210443,0.00036134,2]
[426517148,1782514243000,-1928.77003217,0.00035988,2]
[426517158,1782514243000,-462.96,0.00036003,30]
[426517163,1782514243000,-14271.74676715,0.00036092,2]
[426517161,1782514243000,-159.94,0.00036011,30]
[426517168,1782514243000,-160.93,0.00036138,7]
[426517160,1782514243000,-258.05,0.00036004,30]
[426517154,1782514243000,-50000.000001,0.00036,3]
[426517146,1782514243000,-14271.74676715,0.00035946,2]
[426517153,1782514243000,-208.96139722,0.00036,4]
[426517141,1782514243000,-258.05,0.00035796,2]
[426517140,1782514243000,-462.96,0.00035795,2]
[426517130,1782514243000,-160.92,0.00035377,2]
[426517131,1782514243000,-440.52,0.00035377,30]
[426517136,1782514243000,-462.96,0.00035586,7]
[426517133,1782514243000,-258.05,0.00035379,30]
[426517137,1782514243000,-258.05,0.00035587,7]
[426517138,1782514243000,-160.92,0.00035757,30]
[426517152,1782514243000,-192.27096766,0.00036,120]
[426517135,1782514243000,-440.52,0.00035585,7]
[426517132,1782514243000,-462.96,0.00035378,30]
[426517129,1782514243000,-25935.46348195,0.00035359,2]
[426517139,1782514243000,-440.52,0.00035794,2]
[426517142,1782514243000,-53798.32740722,0.00035899,90]
[426517144,1782514243000,-4602.04,0.00035936,10]
[426517170,1782514243000,-1928.77003217,0.00036176,2]
[426517147,1782514243000,-160.92,0.00035947,2]
[426517145,1782514243000,-1385.6,0.00035942,30]
[426517134,1782514243000,-160.92,0.00035567,7]
[426517171,1782514243000,-350.0,0.00036204,2]
[426517155,1782514243000,-174.54,0.00036003,30]
[426517175,1782514243000,-440.52,0.00036212,7]
[426517193,1782514243000,-151.0,0.0003643,2]
[426517194,1782514243000,-185.27,0.0003643,2]
[426517195,1782514243000,-573.74,0.0003643,2]
[426517196,1782514243000,-151.0,0.0003643,2]
[426517201,1782514243000,-151.0,0.00036434,2]
[426517209,1782514243000,-151.0,0.00036434,2]
[426517208,1782514243000,-151.0,0.00036434,2]
[426517213,1782514243000,-150.0,0.00036511,2]
[426517197,1782514243000,-151.0,0.0003643,2]
[426517211,1782514243000,-573.74,0.00036434,2]
[426517204,1782514243000,-573.78,0.00036434,2]
[426517206,1782514243000,-482.55,0.00036434,2]
[426517214,1782514243000,-94108.96668324,0.00036531,24]
[426517210,1782514243000,-151.0,0.00036434,2]
[426517173,1782514243000,-354.94,0.00036212,7]
[426517205,1782514243000,-151.0,0.00036434,2]
[426517216,1782514243000,-1600.60905335,0.00036531,2]
[426517215,1782514243000,-9726.2919745,0.00036531,2]
[426517207,1782514243000,-573.74,0.00036434,2]
[426517200,1782514243000,-152.22,0.00036434,2]
[426517212,1782514243000,-22680.0,0.000365,2]
[426517202,1782514243000,-573.79,0.00036434,2]
[426517191,1782514243000,-151.0,0.0003643,2]
[426517172,1782514243000,-174.54,0.00036212,7]
[426517177,1782514243000,-258.05,0.00036213,7]
[426517176,1782514243000,-462.96,0.00036212,7]
[426517178,1782514243000,-500.0,0.00036216,4]
[426517181,1782514243000,-377.57328097,0.0003626,120]
[426517180,1782514243000,-348.0,0.0003626,5]
[426517189,1782514243000,-258.05,0.00036421,2]
[426517185,1782514243000,-1928.77003217,0.00036364,2]
[426517174,1782514243000,-367.16,0.00036212,7]
[426517179,1782514243000,-14271.74676715,0.00036239,2]
[426517188,1782514243000,-462.96,0.00036421,2]
[426517183,1782514243000,-164.94,0.0003634,114]
[426517186,1782514243000,-14271.74676715,0.00036385,2]
[426517198,1782514243000,-151.0,0.00036434,2]
[426517192,1782514243000,-642.47,0.0003643,2]
[426517199,1782514243000,-248.62,0.00036434,2]
[426517187,1782514243000,-440.52,0.0003642,2]
[426517203,1782514243000,-151.78,0.00036434,2]
[426517218,1782514245000,-672.88866102,0.00036531,2]
[426517241,1782514246000,-462.96,0.00036838,7]
[426517242,1782514246000,-258.05,0.00036838,7]
[426517239,1782514246000,-700.0,0.00036835,2]
[426517240,1782514246000,-440.52,0.00036838,7]
[426517246,1782514246000,-688.205882,0.00036854,30]
[426517247,1782514246000,-688.205882,0.00036854,30]
[426517253,1782514246000,-150.02,0.00036956,120]
[426517254,1782514246000,-14271.74676715,0.0003697,2]
[426517249,1782514246000,-151.0,0.00036854,30]
[426517248,1782514246000,-688.205882,0.00036854,30]
[426517251,1782514246000,-2827.60188226,0.000369,12]
[426517252,1782514246000,-1928.77003217,0.00036928,2]
[426517244,1782514246000,-151.0,0.00036854,30]
[426517245,1782514246000,-688.205882,0.00036854,30]
[426517238,1782514246000,-14271.74676715,0.00036824,2]
[426517229,1782514246000,-440.52,0.00036629,30]
[426517237,1782514246000,-170.0,0.00036809,7]
[426517220,1782514246000,-613.71208688,0.00036548,10]
[426517219,1782514246000,-2271.95707828,0.00036531,2]
[426517221,1782514246000,-886.28791312,0.00036548,10]
[426517223,1782514246000,-1928.77003217,0.00036552,2]
[426517225,1782514246000,-200.0,0.000366,120]
[426517231,1782514246000,-258.05,0.0003663,30]
[426517243,1782514246000,-151.0,0.00036854,30]
[426517230,1782514246000,-462.96,0.00036629,30]
[426517228,1782514246000,-5000.000001,0.000366,30]
[426517233,1782514246000,-14271.74676715,0.00036677,2]
[426517256,1782514246000,-151.0,0.0003697,7]
[426517235,1782514246000,-164.94,0.0003678,120]
[426517234,1782514246000,-1928.77003217,0.0003674,2]
[426517236,1782514246000,-170.0,0.00036809,7]
[426517227,1782514246000,-336.000617,0.000366,120]
[426517250,1782514246000,-500.0,0.0003687,5]
[426517280,1782514246000,-500.0,0.00037,2]
[426517258,1782514246000,-179.05,0.0003697,30]
[426517278,1782514246000,-500.0,0.00037,2]
[426517279,1782514246000,-500.0,0.00037,2]
[426517282,1782514246000,-500.0,0.00037,2]
[426517281,1782514246000,-500.0,0.00037,2]
[426517284,1782514246000,-500.0,0.00037,2]
[426517285,1782514246000,-500.0,0.00037,2]
[426517272,1782514246000,-500.0,0.00037,2]
[426517286,1782514246000,-500.0,0.00037,2]
[426517292,1782514246000,-500.0,0.00037,2]
[426517290,1782514246000,-500.0,0.00037,2]
[426517288,1782514246000,-500.0,0.00037,2]
[426517291,1782514246000,-500.0,0.00037,2]
[426517293,1782514246000,-500.0,0.00037,2]
[426517255,1782514246000,-459.0,0.0003697,30]
[426517289,1782514246000,-500.0,0.00037,2]
[426517271,1782514246000,-151.21064765,0.00037,2]
[426517287,1782514246000,-500.0,0.00037,2]
[426517274,1782514246000,-500.0,0.00037,2]
[426517273,1782514246000,-500.0,0.00037,2]
[426517268,1782514246000,-151.0,0.00037,30]
[426517269,1782514246000,-151.0,0.00037,30]
[426517260,1782514246000,-179.05,0.0003697,30]
[426517257,1782514246000,-151.0,0.0003697,30]
[426517262,1782514246000,-3330.0,0.00037,120]
[426517264,1782514246000,-5309.98,0.00037,120]
[426517261,1782514246000,-179.05,0.0003697,30]
[426517263,1782514246000,-7674.0,0.00037,117]
[426517259,1782514246000,-179.05,0.0003697,30]
[426517265,1782514246000,-237.67511612,0.00037,120]
[426517267,1782514246000,-151.0,0.00037,30]
[426517276,1782514246000,-500.0,0.00037,2]
[426517270,1782514246000,-151.0,0.00037,10]
[426517266,1782514246000,-151.0,0.00037,30]
[426517310,1782514247000,-500.0,0.00037,2]
[426517302,1782514247000,-500.0,0.00037,2]
[426517309,1782514247000,-500.0,0.00037,2]
[426517307,1782514247000,-500.0,0.00037,2]
[426517306,1782514247000,-500.0,0.00037,2]
[426517299,1782514247000,-500.0,0.00037,2]
[426517304,1782514247000,-500.0,0.00037,2]
[426517301,1782514247000,-500.0,0.00037,2]
[426517295,1782514247000,-500.0,0.00037,2]
[426517305,1782514247000,-500.0,0.00037,2]
[426517298,1782514247000,-500.0,0.00037,2]
[426517300,1782514247000,-500.0,0.00037,2]
[426517296,1782514247000,-500.0,0.00037,2]
[426517294,1782514247000,-500.0,0.00037,2]
[426517297,1782514247000,-500.0,0.00037,2]
[426517308,1782514247000,-500.0,0.00037,2]
[426517303,1782514247000,-500.0,0.00037,2]
[426517312,1782514247000,-500.0,0.00037,2]
[426517323,1782514247000,-504.8621081,0.00037058,2]
[426517319,1782514247000,-151.0,0.00037029,30]
[426517327,1782514247000,-1698.0,0.00037097,20]
[426517328,1782514247000,-150.0,0.00037099,120]
[426517329,1782514247000,-374825.93694253,0.000371,120]
[426517326,1782514247000,-635.20112348,0.0003709,2]
[426517324,1782514247000,-694.3174577,0.00037073,2]
[426517325,1782514247000,-32083.22219518,0.0003709,10]
[426517318,1782514247000,-169.0,0.00037,5]
[426517313,1782514247000,-500.0,0.00037,2]
[426517317,1782514247000,-577.12511386,0.00037,11]
[426517314,1782514247000,-500.0,0.00037,2]
[426517330,1782514247000,-54127.34582178,0.000371,120]
[426517316,1782514247000,-504.86210812,0.00037,2]
[426517321,1782514247000,-212.75293918,0.0003703,2]
[426517322,1782514247000,-694.3174577,0.0003703,2]
[426517320,1782514247000,-166.75529626,0.0003703,2]
[426517315,1782514247000,-615.951333,0.00037,2]
[426517311,1782514247000,-500.0,0.00037,2]
[426517331,1782514248000,918.0564,0.0003,120]
[426517332,1782514348000,661542.05968022,0.0003,120]
[426517335,1782514477000,821.29010056,8e-05,2]
[426517344,1782515356000,-1955.947112,0.000147,2]
[426517363,1782515431000,-500.0,0.00014999,2]
[426517366,1782515431000,-500.0,0.00014999,2]
[426517364,1782515431000,-500.0,0.00014999,2]
[426517362,1782515431000,-352.44763752,0.00014999,2]
[426517361,1782515431000,-500.0,0.00014999,2]
[426517360,1782515431000,-500.0,0.00014999,2]
[426517359,1782515431000,-353.74158537,0.00014999,2]
[426517358,1782515431000,-500.0,0.00014999,2]
[426517357,1782515431000,-150.0,0.00014998,2]
[426517356,1782515431000,-619.17779426,0.0001499,2]
[426517353,1782515431000,-3305.62645987,0.000149,2]
[426517354,1782515431000,-358.78710948,0.000149,2]
[426517351,1782515431000,-202.77155078,0.000148,2]
[426517350,1782515431000,-150.0,0.0001475,2]
[426517349,1782515431000,-405.480888,0.000147,2]
[426517355,1782515431000,-262.83656374,0.000149,2]
[426517365,1782515431000,-520.5332745,0.00014999,2]
[426517352,1782515431000,-667.3033344,0.000149,2]
[426517367,1782515431000,-210.98620683,0.00014999,2]
[426517383,1782515431000,-783.58501936,0.00015,2]
[426517384,1782515431000,-889.73795982,0.00015,2]
[426517380,1782515431000,-500.0,0.00015,2]
[426517382,1782515431000,-2316.06194047,0.00015,2]
[426517381,1782515431000,-575.40600732,0.00015,2]
[426517378,1782515431000,-150.0,0.00014999,2]
[426517377,1782515431000,-183.88911043,0.00014999,2]
[426517379,1782515431000,-3369.00411757,0.00015,2]
[426517385,1782515431000,-4838.00677323,0.00015,2]
[426517374,1782515431000,-500.0,0.00014999,2]
[426517375,1782515431000,-150.0,0.00014999,2]
[426517369,1782515431000,-500.0,0.00014999,2]
[426517370,1782515431000,-170.40252215,0.00014999,2]
[426517372,1782515431000,-199.35418062,0.00014999,2]
[426517368,1782515431000,-173.22495794,0.00014999,2]
[426517373,1782515431000,-218.80482344,0.00014999,2]
[426517376,1782515431000,-150.0,0.00014999,2]
[426517371,1782515431000,-618.7484831,0.00014999,2]
[426517386,1782515432000,-287577.97881287,0.00015,2]
[426517388,1782515432000,-168446.83183294,0.00015,2]
[426517413,1782515438000,-5658.28407708,0.00015,2]
[426517431,1782515440000,-47675.37783022,0.00015,2]
[426517430,1782515440000,-18889.90809935,0.00015,2]
[426517428,1782515440000,-71549.9332583,0.00015,2]
[426517429,1782515440000,-2432.74583931,0.00015,2]
[426517444,1782515443000,-2106.74403981,0.00015,2]
[426517453,1782515446000,-3087.78221028,0.00015,2]
[426517461,1782515699000,664.09121624,0.0001,2]
[426517462,1782515952000,-359.42078982,0.000147,2]
[426517463,1782515952000,-167.25804105,0.000147,2]
[426517469,1782516418000,-224.12382294,0.000147,2]
[426517471,1782516470000,197.63,0.00014247,2]
[426517474,1782516552000,-1000.0,0.000147,2]
[426517475,1782516552000,-1000.0,0.000147,2]
[426517473,1782516552000,-775.87617706,0.000147,2]
[426517476,1782516552000,-116.24823213,0.000147,2]
[426517486,1782516631000,-883.75176787,0.000147,2]
[426517487,1782516631000,-1334.05076223,0.000147,2]
[426517488,1782516631000,-905.95923777,0.000147,2]
[426517490,1782516631000,-4315.26008323,0.000149,2]
[426517491,1782516631000,-1003.96023723,0.000149,2]
[426517489,1782516631000,-150.0,0.00014719,2]
[426517504,1782516632000,-449.68007958,0.00014999,2]
[426517503,1782516632000,-50.31992042,0.00014999,2]
[426517506,1782516632000,-500.0,0.00014999,2]
[426517507,1782516632000,-500.0,0.00014999,2]
[426517500,1782516632000,-500.0,0.00014999,2]
[426517493,1782516632000,-150.0,0.00014998,2]
[426517497,1782516632000,-500.0,0.00014999,2]
[426517492,1782516632000,-155.12335674,0.000149,2]
[426517495,1782516632000,-500.0,0.00014999,2]
[426517496,1782516632000,-587.25182717,0.00014999,2]
[426517494,1782516632000,-500.0,0.00014999,2]
[426517499,1782516632000,-500.0,0.00014999,2]
[426517498,1782516632000,-500.0,0.00014999,2]
[426517501,1782516632000,-443.83488744,0.00014999,2]
[426517508,1782516632000,-500.0,0.00014999,2]
[426517519,1782516632000,-390.32388371,0.00014999,2]
[426517517,1782516632000,-265.23853261,0.00014999,2]
[426517515,1782516632000,-500.0,0.00014999,2]
[426517523,1782516632000,-43617.94519683,0.00015,2]
[426517502,1782516632000,-500.0,0.00014999,2]
[426517524,1782516632000,-17663.53874121,0.00015,2]
[426517521,1782516632000,-9495.51221739,0.00015,2]
[426517513,1782516632000,-631.09101248,0.00014999,2]
[426517525,1782516632000,-10298.95534986,0.00015,2]
[426517522,1782516632000,-304.0,0.00015,2]
[426517511,1782516632000,-320.23359294,0.00014999,2]
[426517505,1782516632000,-500.0,0.00014999,2]
[426517526,1782516632000,-1254.41808677,0.00015,2]
[426517534,1782516638000,-805.567938,0.00015,2]
[426517533,1782516638000,-5658.28407708,0.00015,2]
[426517538,1782516640000,-2249.99189278,0.00015,2]
[426517540,1782516640000,-750.22670539,0.00015,2]
[426517542,1782516640000,-789.49045262,0.00015,2]
[426517541,1782516640000,-835.3676,0.00015,2]
[426517539,1782516640000,-637.28003414,0.00015,2]
[426517551,1782516643000,-334.0407658,0.00015,2]
[426517550,1782516643000,-5446.83984273,0.00015,2]
[426517549,1782516643000,-479.37730757,0.00015,2]
[426517560,1782516646000,-707.40469,0.00015,2]
[426517559,1782516646000,-420.20000901,0.00015,2]
[426517558,1782516646000,-330.00328033,0.00015,2]
[426517557,1782516646000,-565.01854175,0.00015,2]
[426517573,1782517365000,783.28,0.00013699,2]
[426517574,1782517417000,2500.0,0.00037252,120]
[426517575,1782517418000,150.0,0.00014199,2]
[426517576,1782517540000,587.46,0.00013699,2]
[426517589,1782517757000,-150.0,0.00014745,2]
[426517592,1782517757000,-13.47555303,0.000149,2]
[426517591,1782517757000,-681.02712906,0.000149,2]
[426517590,1782517757000,-531.08497955,0.00014853,2]
[426517615,1782517833000,-500.0,0.00014999,2]
[426517612,1782517833000,-500.0,0.00014999,2]
[426517619,1782517833000,-500.0,0.00014999,2]
[426517608,1782517833000,-500.0,0.00014999,2]
[426517610,1782517833000,-500.0,0.00014999,2]
[426517620,1782517833000,-500.0,0.00014999,2]
[426517611,1782517833000,-500.0,0.00014999,2]
[426517618,1782517833000,-500.0,0.00014999,2]
[426517609,1782517833000,-500.0,0.00014999,2]
[426517607,1782517833000,-484.70022051,0.00014999,2]
[426517613,1782517833000,-500.0,0.00014999,2]
[426517617,1782517833000,-500.0,0.00014999,2]
[426517600,1782517833000,-1925.44275802,0.00014985,2]
[426517603,1782517833000,-245.9716358,0.00014985,2]
[426517616,1782517833000,-500.0,0.00014999,2]
[426517604,1782517833000,-500.0,0.00014999,2]
[426517602,1782517833000,-12981.08789753,0.00014985,2]
[426517596,1782517833000,-280.61030352,0.00014979,2]
[426517599,1782517833000,-764.8265977,0.00014985,2]
[426517597,1782517833000,-150.0,0.00014984,2]
[426517594,1782517833000,-1440.41889203,0.000149,2]
[426517605,1782517833000,-500.0,0.00014999,2]
[426517606,1782517833000,-500.0,0.00014999,2]
[426517595,1782517833000,-989.39371167,0.000149,2]
[426517593,1782517833000,-847.78305494,0.000149,2]
[426517598,1782517833000,-1224.735507,0.00014985,2]
[426517614,1782517833000,-531.79023322,0.00014999,2]
[426517601,1782517833000,-3246.08616145,0.00014985,2]
[426517625,1782517833000,-500.0,0.00014999,2]
[426517622,1782517833000,-500.0,0.00014999,2]
[426517645,1782517833000,-500.0,0.00014999,2]
[426517646,1782517833000,-119413.75330192,0.00015,2]
[426517648,1782517833000,-20288.55620906,0.00015,2]
[426517649,1782517833000,-8518.30589916,0.00015,2]
[426517642,1782517833000,-500.0,0.00014999,2]
[426517643,1782517833000,-500.0,0.00014999,2]
[426517644,1782517833000,-545.97305866,0.00014999,2]
[426517641,1782517833000,-500.0,0.00014999,2]
[426517638,1782517833000,-231.56049871,0.00014999,2]
[426517640,1782517833000,-500.0,0.00014999,2]
[426517637,1782517833000,-500.0,0.00014999,2]
[426517639,1782517833000,-358.66422458,0.00014999,2]
[426517647,1782517833000,-11948.73838554,0.00015,2]
[426517631,1782517833000,-288.63042167,0.00014999,2]
[426517626,1782517833000,-500.0,0.00014999,2]
[426517623,1782517833000,-500.0,0.00014999,2]
[426517621,1782517833000,-500.0,0.00014999,2]
[426517627,1782517833000,-500.0,0.00014999,2]
[426517630,1782517833000,-500.0,0.00014999,2]
[426517624,1782517833000,-500.0,0.00014999,2]
[426517628,1782517833000,-500.0,0.00014999,2]
[426517632,1782517833000,-626.43522646,0.00014999,2]
[426517634,1782517833000,-500.0,0.00014999,2]
[426517633,1782517833000,-500.0,0.00014999,2]
[426517635,1782517833000,-500.0,0.00014999,2]
[426517629,1782517833000,-500.0,0.00014999,2]
[426517636,1782517833000,-520.66627614,0.00014999,2]
[426517655,1782517838000,-1371.42346935,0.00015,2]
[426517652,1782517838000,-520.56739537,0.000149,2]
[426517653,1782517838000,-2493.70260463,0.00015,2]
[426517654,1782517838000,-400.63694506,0.00015,2]
[426517657,1782517838000,-5658.28407708,0.00015,2]
[426517658,1782517838000,-1846.9,0.00015,2]
[426517656,1782517838000,-6588.78163805,0.00015,2]
[426517685,1782517840000,-662.34366678,0.00015,2]
[426517683,1782517840000,-345.253,0.00015,2]
[426517684,1782517840000,-545.41116675,0.00015,2]
[426517682,1782517840000,-820.35314472,0.00015,2]
[426517681,1782517840000,-3734.10372514,0.00015,2]
[426517680,1782517840000,-40187.42798775,0.00015,2]
[426517679,1782517840000,-1500.0,0.00015,2]
[426517699,1782517843000,-2370.5,0.00015,2]
[426517693,1782517843000,-596.53268897,0.00015,2]
[426517694,1782517843000,-655.6742,0.00015,2]
[426517696,1782517843000,-10868.65165046,0.00015,2]
[426517697,1782517843000,-906.31254722,0.00015,2]
[426517698,1782517843000,-11859.52552518,0.00015,2]
[426517695,1782517843000,-804.8152909,0.00015,2]
[426517700,1782517843000,-0.00194574,0.00015,2]
[426517701,1782517843000,-3488.21152871,0.00015,2]
[426517703,1782517843000,-363.21737898,0.00015,2]
[426517702,1782517843000,-623.4319458,0.00015,2]
[426517704,1782517843000,-239647.93131379,0.00015,2]
[426517708,1782517849000,-14216.15965616,0.00015,2]
[426517710,1782517849000,-5872.68117204,0.00015,2]
[426517709,1782517849000,-1634.79999985,0.00015,2]
[426517712,1782517849000,-23347.83715345,0.00015,2]
[426517714,1782517849000,-4462.94612258,0.00015,2]
[426517713,1782517849000,-4400.33003597,0.00015,2]
[426517711,1782517849000,-1000.0,0.00015,2]
[426517715,1782517862000,475.0,0.00037253,120]
[426517718,1782517995000,524.76235903,0.00037253,120]
[426517732,1782518778000,440.47,0.0003725,120]
[426517734,1782518949000,-108.31896874,0.00014998,2]
[426517733,1782518949000,-1267.2686929,0.00014998,2]
[426517772,1782519032000,-3009.6,0.00023169,7]
[426517753,1782519032000,-151.0,0.00017149,2]
[426517764,1782519032000,-169.86,0.0002175,7]
[426517766,1782519032000,-239.0,0.00022384,2]
[426517769,1782519032000,-705.0,0.0002242,2]
[426517771,1782519032000,-2271.55,0.00023169,7]
[426517758,1782519032000,-1100.0,0.00021496,2]
[426517754,1782519032000,-175.09,0.00020389,2]
[426517756,1782519032000,-571.89,0.00021273,2]
[426517752,1782519032000,-151.0,0.00017149,2]
[426517762,1782519032000,-169.87,0.0002175,7]
[426517749,1782519032000,-163.82,0.00016498,2]
[426517774,1782519032000,-166.66,0.00024256,30]
[426517746,1782519032000,-160.0,0.00016236,2]
[426517740,1782519032000,-1155.58666498,0.00014999,2]
[426517747,1782519032000,-300.0,0.00016498,2]
[426517751,1782519032000,-151.0,0.00017149,2]
[426517745,1782519032000,-350.0,0.000157,2]
[426517748,1782519032000,-2410.95052561,0.00016498,2]
[426517743,1782519032000,-700.0,0.0001542,2]
[426517744,1782519032000,-216.42324807,0.0001554,2]
[426517742,1782519032000,-150.0,0.00015147,2]
[426517741,1782519032000,-151.0,0.00015,2]
[426517739,1782519032000,-1178.00238394,0.00014999,2]
[426517738,1782519032000,-5826.41327979,0.00014999,2]
[426517737,1782519032000,-89.20096108,0.00014998,2]
[426517735,1782519032000,-442.904452,0.00014998,2]
[426517750,1782519032000,-151.0,0.00017149,2]
[426517760,1782519032000,-1238.540468,0.00021497,2]
[426517736,1782519032000,-598.11608618,0.00014998,2]
[426517778,1782519032000,-2898.01,0.00024449,7]
[426517815,1782519032000,-2137.0,0.0002546,2]
[426517816,1782519032000,-200.0,0.00025484,2]
[426517814,1782519032000,-1629.8,0.00025454,2]
[426517812,1782519032000,-187.93,0.00025443,2]
[426517813,1782519032000,-163.31,0.00025445,2]
[426517800,1782519032000,-2527.66,0.00025224,2]
[426517806,1782519032000,-170.13,0.00025374,2]
[426517810,1782519032000,-401.02,0.00025412,2]
[426517809,1782519032000,-5000.0,0.00025406,2]
[426517811,1782519032000,-501.22,0.00025435,2]
[426517808,1782519032000,-381.0,0.000254,15]
[426517807,1782519032000,-276.5,0.00025398,30]
[426517801,1782519032000,-1000.0,0.00025266,2]
[426517805,1782519032000,-1123.51,0.00025369,2]
[426517804,1782519032000,-2208.85,0.00025367,2]
[426517803,1782519032000,-163.01,0.00025279,2]
[426517787,1782519032000,-166.66,0.00024767,30]
[426517794,1782519032000,-200.0,0.00025009,2]
[426517781,1782519032000,-150.0,0.00024656,2]
[426517783,1782519032000,-153.55,0.00024658,2]
[426517789,1782519032000,-2454.08,0.00024791,2]
[426517791,1782519032000,-6471.47,0.00024793,2]
[426517776,1782519032000,-1458.47,0.00024297,2]
[426517793,1782519032000,-3079.96,0.00024938,2]